[Event "Romanian Championship 2024"]
[Site "Eforie Nord"]
[Date "2024.03.01"]
[Round "8.9"]
[White "Secheres, Adrian-Simion"]
[Black "Voiteanu, Gabriel"]
[Result "1-0"]
[ECO "D87"]
[WhiteElo "2371"]
[BlackElo "2151"]
[Annotator "TA"]
[PlyCount "65"]
[EventDate "2024.02.24"]
[EventType "swiss"]
[EventCountry "ROU"]
[SourceTitle "playchess.com"]
[Source "ChessBase"]
[SourceQuality "1"]
[TimeControl "40/5400+30:900+30"]

{[%evp 20,65,22,0,0,0,5,0,18,30,222,207,218,226,218,220,201,194,218,93,120,117,118,112,133,123,147,155,168,162,170,154,169,173,209,157,184,157,188,138,208,176,249,249,425,391,29969,9996]} 1. d4 {[%emt 0:00:05]} Nf6 {[%emt 0:00:29]} 2. c4 {[%emt 0:00:17]} g6 {[%emt 0:00:10]} 3. Nc3 {[%emt 0:00:36]} d5 {[%emt 0:00:07]} 4. cxd5 {[%emt 0:00:33]} Nxd5 {[%emt 0:00:07]} 5. e4 {[%emt 0:00:29]} Nxc3 {[%emt 0:00:05]} 6. bxc3 {[%emt 0:00:03][%cal Bb2c3,Bc3d4,Bd4e5][%mdl 32]} Bg7 {[%emt 0:00:09]} 7. Bc4 {[%emt 0:02:02]} O-O {[%emt 0:00:10]} 8. Ne2 {[%emt 0:00:29]} c5 {[%emt 0:00:14]} 9. Be3 {[%emt 0:00:34]} cxd4 {[%emt 0:00:44]} 10. cxd4 {[%emt 0:00:18]} Nc6 {[%emt 0:00:09]} 11. Rc1 {[%emt 0:00:45]} Qa5+ {[%emt 0:05:56]} 12. Rc3 {[%emt 0:00:12]} Rd8 {[%emt 0:12:40][%cal Oc6d4] Hoping for ...Nxd4!} 13. Qd2 {[%emt 0:03:50]} Ne5 {[%emt 0:11:23] The position is equal.} 14. Bd5 {[%emt 0:03:06]} Bg4 $2 {[%emt 0:09:19]} 15. dxe5 $18 {[%emt 0:10:43]} Bxe2 {[%emt 0:29:51]} 16. Kxe2 {[%emt 0:01:13]} e6 {[%emt 0:00:59]} 17. Bg5 $1 {[%emt 0:02:16]} exd5 {[%emt 0:04:33]} 18. Bxd8 {[%emt 0:00:53]} Rxd8 {[%emt 0:00:06]} 19. Rd3 {[%emt 0:08:37]} (19. Rhc1 $1 $18 {and White stays clearly on top. aiming for Rc8.} Qa4 (19... Bxe5 $2 {is the wrong capture.} 20. Rc8 $18) (19... dxe4 $2 20. Qxd8+ Qxd8 21. Rc8 $18) 20. Rc8 (20. exd5 Bxe5 21. Rc4 Qd7 $18) 20... Qxe4+ 21. Qe3 Qg4+ (21... Qxe3+ $2 22. Kxe3 Rf8 23. Kd4 $18) 22. f3 (22. Qf3 Rxc8 23. Qxg4 Rxc1 $18) 22... Qxc8 (22... Qxg2+ $2 23. Kd3 $18) 23. Rxc8 Rxc8 24. g3 (24. Qxa7 Bxe5 25. Qxb7 Rc2+ 26. Kf1 Rc1+ 27. Ke2 Rc2+ 28. Kf1 Rc1+ 29. Ke2 Rc2+ $11)) 19... Qb5 {[%emt 0:03:49]} 20. exd5 {[%emt 0:04:33]} Rxd5 {[%emt 0:06:30] [#]} 21. Rd1 $1 {[%emt 0:07:29]} Bxe5 {[%emt 0:06:17][%cal Oe5d4]} 22. Kf1 {[%emt 0:03:55]} Qc4 {[%emt 0:03:11]} 23. Qe2 {[%emt 0:02:24]} Rxd3 {[%emt 0:00:45]} 24. Rxd3 $16 {[%emt 0:00:17][%mdl 4096] Endgame. Threatening mate with Rd8+. KQR-KQB} Qc1+ {[%emt 0:02:01]} 25. Rd1 {[%emt 0:00:41]} Qc7 {[%emt 0:00:13]} 26. g3 {[%emt 0:03:09]} h5 {[%emt 0:00:20]} 27. Qe4 {[%emt 0:04:04]} Kg7 {[%emt 0:01:48]} 28. Kg2 {[%emt 0:03:48]} Bf6 {[%emt 0:00:09] [#]} 29. Rd2 {[%emt 0:09:04]} (29. Qa4 $1 $18) 29... Qa5 {[%emt 0:00:14]} (29... b6 $16 30. Rd5 a5) 30. Rc2 {[%emt 0:00:45]} Qb6 {[%emt 0:01:32]} (30... h4 {was necessary.} 31. gxh4 (31. Qxb7 h3+ 32. Kf1 Qd8 $16) 31... b6) 31. Rc8 $18 {[%emt 0:02:45] Threatens to win with Qe8.} Qb5 {[%emt 0:00:20]} (31... Qd6 {was worth a try.} 32. h4 (32. Qxb7 Qe6 $18) 32... b6) 32. Rc7 {[%emt 0:00:48]} b6 {[%emt 0:01:33]} (32... a5 $18 33. Qe6 (33. Rxb7 Qc5 $18) (33. Qxb7 Qxb7+ 34. Rxb7 Bc3 $18) 33... Qc6+ 34. Rxc6 fxe6) 33. Qe6 {[%emt 0:00:16] Weighted Error Value: White=0.15 (very precise) /Black=0.63.  Loses game:     	---       	Black=1      Mistake:       	White=2     	Black=4      OK:         	White=8     	Black=5      Best:        	White=3     	Black=1      Strong:       	White=2     	---} 1-0

[Event "Romanian Championship 2024"]
[Site "Eforie Nord"]
[Date "2024.03.01"]
[Round "8.10"]
[White "David, Alexandru-Vasile"]
[Black "Nastore, Pavel-Alexandru"]
[Result "1/2-1/2"]
[ECO "B50"]
[WhiteElo "2360"]
[BlackElo "2182"]
[Annotator "TA"]
[PlyCount "43"]
[EventDate "2024.02.24"]
[EventType "swiss"]
[EventCountry "ROU"]
[SourceTitle "playchess.com"]
[Source "ChessBase"]
[SourceQuality "1"]
[TimeControl "40/5400+30:900+30"]

{[%evp 9,43,0,0,0,0,0,6,0,0,0,0,12,18,21,21,25,16,16,51,48,63,12,16,15,33,18,22,0,2,-12,-8,-10,0,-24,-20,-62]} 1. e4 {[%emt 0:00:04]} c5 {[%emt 0:00:32]} 2. Nf3 {[%emt 0:00:10]} d6 {[%emt 0:00:04]} 3. Nc3 {[%emt 0:00:07]} Nf6 {[%emt 0:00:09]} 4. h3 {[%emt 0:00:05]} a6 {[%emt 0:00:13]} 5. a4 {[%emt 0:00:06]} Nc6 {[%emt 0:07:37]} 6. d4 {[%emt 0:00:14]} cxd4 {[%emt 0:00:04]} 7. Nxd4 {[%emt 0:00:07]} e5 {[%emt 0:04:27]} 8. Nxc6 {[%emt 0:01:43]} bxc6 {[%emt 0:00:04]} 9. Bd3 {[%emt 0:00:08]} Be7 {[%emt 0:07:31]} 10. a5 {[%emt 0:00:07]} O-O {[%emt 0:01:10]} 11. O-O {[%emt 0:00:07]} d5 {[%emt 0:06:47][%cal Bd6d5,Bd5d4][%mdl 32]} 12. Qe2 {[%emt 0:01:36]} d4 {[%emt 0:08:32]} 13. Nb1 {[%emt 0:04:50]} Ne8 {[%emt 0:30:23]} 14. Nd2 {[%emt 0:03:32]} Nd6 {[%emt 0:00:04]} 15. Nc4 {[%emt 0:00:05]} ({Better is} 15. f4 $14) 15... Nxc4 $11 {[%emt 0:00:33]} 16. Bxc4 {[%emt 0:02:50]} Bd6 {[%emt 0:02:05]} 17. f4 {[%emt 0:08:43]} exf4 {[%emt 0:01:50]} 18. e5 {[%emt 0:00:07] Against Qf6} Bc5 {[%emt 0:03:00] ...d3+ is the strong threat.} 19. Bd3 {[%emt 0:02:14] [#]} Bf5 {[%emt 0:04:32] Dodges Qe4} 20. Bxf4 {[%emt 0:09:35]} (20. Bxf5 $2 {too greedy.} d3+ $19) 20... Bxd3 {[%emt 0:01:02]} 21. cxd3 {[%emt 0:00:06]} Qd5 {[%emt 0:01:08]} 22. Rfc1 {[%emt 0:18:34] Weighted Error Value: White=0.11 (very precise) /Black=0.05 (flawless) .  Mistake:       	White=1     	---        Inaccurate:     	White=1     	Black=1      OK:         	White=6     	Black=7      Best:        	---       	Black=1      Brilliant:      	---       	Black=1} 1/2-1/2

[Event "Romanian Championship 2024"]
[Site "Eforie Nord"]
[Date "2024.03.01"]
[Round "8.11"]
[White "Maximov, Oleg"]
[Black "Ciorgovean, Iustin"]
[Result "1/2-1/2"]
[ECO "B25"]
[WhiteElo "2186"]
[BlackElo "2310"]
[Annotator "TA"]
[PlyCount "54"]
[EventDate "2024.02.24"]
[EventType "swiss"]
[EventCountry "ROU"]
[SourceTitle "playchess.com"]
[Source "ChessBase"]
[SourceQuality "1"]
[TimeControl "40/5400+30:900+30"]

{[%evp 17,54,0,0,-6,0,-21,-1,-35,-29,-35,-40,-35,-41,-39,-35,-60,-52,-53,-15,-18,-10,-36,0,10,12,0,0,0,0,-17,-6,0,0,0,8,0,3,8,19]} 1. e4 {[%emt 0:00:04]} c5 {[%emt 0:00:06]} 2. Nf3 {[%emt 0:00:11]} d6 {[%emt 0:00:10]} 3. g3 {[%emt 0:00:19]} Nf6 {[%emt 0:00:04]} 4. d3 {[%emt 0:00:08]} Nc6 {[%emt 0:00:19]} 5. Bg2 {[%emt 0:00:05]} g6 {[%emt 0:00:05]} 6. O-O {[%emt 0:00:05]} Bg7 {[%emt 0:00:03]} 7. Nc3 {[%emt 0:00:35]} O-O {[%emt 0:00:18]} 8. h3 {[%emt 0:01:41]} Rb8 {[%emt 0:04:09]} 9. a4 {[%emt 0:00:11]} a6 {[%emt 0:10:04]} 10. Re1 {[%emt 0:00:35]} Nd7 {[%emt 0:06:39]} 11. Be3 {[%emt 0:06:47]} Nd4 {[%emt 0:01:53]} 12. Nd2 {[%emt 0:05:10]} b5 {[%emt 0:03:16]} 13. axb5 {[%emt 0:00:06]} axb5 {[%emt 0:00:05]} 14. Nd5 {[%emt 0:04:09]} e6 {[%emt 0:07:07]} 15. Nf4 {[%emt 0:00:22]} b4 {[%emt 0:08:36]} 16. Rb1 {[%emt 0:13:55]} Qc7 {[%emt 0:13:26]} 17. Ne2 {[%emt 0:01:44]} Nxe2+ {[%emt 0:04:11]} 18. Qxe2 {[%emt 0:00:10]} Nb6 {[%emt 0:05:28]} 19. Nc4 {[%emt 0:04:49]} f5 {[%emt 0:10:35]} (19... Nxc4 $15 20. dxc4 Bb7) 20. exf5 $11 {[%emt 0:02:24] The position is equal.} gxf5 {[%emt 0:00:15]} 21. Bf4 {[%emt 0:04:14]} e5 {[%emt 0:01:15]} 22. Nxb6 {[%emt 0:00:41]} Rxb6 {[%emt 0:02:48]} 23. Bd5+ {[%emt 0:01:54]} Kh8 {[%emt 0:00:05]} 24. Bg5 {[%emt 0:00:56]} Bb7 {[%emt 0:02:28]} 25. Qf3 {[%emt 0:02:49]} h6 {[%emt 0:02:11] [#] And now ...Bxd5 would win.} 26. Bd2 {[%emt 0:01:44]} Bxd5 {[%emt 0:01:46]} 27. Qxd5 {[%emt 0:00:06]} Qc6 {[%emt 0:00:05] Weighted Error Value: White=0.08 (flawless) /Black=0.09 (flawless) .  Mistake:       	---       	Black=1      Inaccurate:     	White=2     	Black=1      OK:         	White=5     	Black=5      Best:        	---       	Black=1} 1/2-1/2

[Event "Romanian Championship 2024"]
[Site "Eforie Nord"]
[Date "2024.03.01"]
[Round "8.12"]
[White "Radu, David Cr."]
[Black "Serban, Cristian-Stefan"]
[Result "1-0"]
[ECO "B13"]
[WhiteElo "2142"]
[BlackElo "2309"]
[Annotator "TA"]
[PlyCount "125"]
[EventDate "2024.02.24"]
[EventType "swiss"]
[EventCountry "ROU"]
[SourceTitle "playchess.com"]
[Source "ChessBase"]
[SourceQuality "1"]
[TimeControl "40/5400+30:900+30"]

{[%evp 19,125,22,25,28,33,28,23,16,26,23,26,24,21,8,15,4,24,0,16,10,27,0,0,-1,-8,-16,0,-11,0,-4,-2,-1,0,0,0,3,14,15,68,56,70,0,0,0,0,0,0,0,0,0,0,0,0,0,0,0,0,0,0,0,0,0,0,0,0,0,0,0,50,7,0,0,0,0,0,6,0,0,0,0,0,0,0,0,0,0,0,0,0,0,0,0,0,-20,-8,-17,-27,-21,1027,1065,1149,1138,1225,1025,1413,1305,1069,987]} 1. e4 {[%emt 0:00:03]} c6 {[%emt 0:00:07]} 2. d4 {[%emt 0:00:19]} d5 {[%emt 0:00:06]} 3. exd5 {[%emt 0:00:23]} cxd5 {[%emt 0:00:06]} 4. Bd3 {[%emt 0:00:22]} Nc6 {[%emt 0:00:08]} 5. c3 {[%emt 0:00:07]} Nf6 {[%emt 0:01:50]} 6. Bf4 {[%emt 0:00:56]} Bg4 {[%emt 0:00:08]} 7. Qb3 {[%emt 0:01:57]} Qd7 {[%emt 0:00:08]} 8. Nd2 {[%emt 0:00:29]} e6 {[%emt 0:00:05]} 9. Ngf3 {[%emt 0:00:50]} Bd6 {[%emt 0:00:06]} 10. Bxd6 {[%emt 0:00:57]} Qxd6 {[%emt 0:00:05]} 11. O-O {[%emt 0:00:11]} O-O {[%emt 0:00:04]} 12. Rae1 {[%emt 0:01:55]} Ne7 {[%emt 0:02:34]} 13. Ne5 {[%emt 0:02:46] White has an edge.} (13. Qxb7 Rfb8 14. Qa6 Qxa6 15. Bxa6 Rxb2 $17) 13... Bf5 {[%emt 0:00:04]} 14. Bxf5 {[%emt 0:02:39]} (14. Qxb7 $2 Bxd3 (14... Rfb8 15. Qa6 $17) 15. Nxd3 Rfb8 $19) 14... Nxf5 {[%emt 0:00:07]} 15. g4 {[%emt 0:00:07]} Ne7 {[%emt 0:01:32]} 16. Qb5 {[%emt 0:01:31]} (16. Qxb7 $2 Rfb8 17. Ndc4 dxc4 $19) 16... Qc7 {[%emt 0:16:11]} 17. Qe2 {[%emt 0:13:26]} b5 {[%emt 0:01:48][%cal Bb7b5,Bb5b4][%mdl 32]} 18. a3 {[%emt 0:00:42]} (18. Qxb5 Rfb8 19. Qa6 Rxb2 $17) 18... a5 {[%emt 0:03:45][%cal Ob5b4]} 19. Nd3 {[%emt 0:00:20]} (19. Qxb5 Rab8 20. Qd3 Rxb2 $17) 19... Nc6 {[%emt 0:12:34][%cal Ob5b4]} 20. f4 {[%emt 0:07:24]} b4 {[%emt 0:00:17]} 21. g5 {[%emt 0:00:52]} Nd7 {[%emt 0:00:07]} 22. f5 {[%emt 0:00:50]} exf5 {[%emt 0:00:43]} 23. Rxf5 {[%emt 0:00:38]} bxc3 {[%emt 0:01:42]} 24. bxc3 {[%emt 0:00:07][%cal Od3f4]} Qd6 {[%emt 0:01:39]} 25. a4 {[%emt 0:05:06]} Rab8 {[%emt 0:03:35]} 26. Rf3 {[%emt 0:04:25]} Nb6 {[%emt 0:10:55]} 27. Nc5 {[%emt 0:00:43]} Qg6 {[%emt 0:02:08]} 28. Rg3 {[%emt 0:03:50]} Rfd8 {[%emt 0:03:41]} (28... Qf5 $11) 29. h4 $1 $14 {[%emt 0:09:31]} h5 {[%emt 0:01:39]} 30. Qd3 {[%emt 0:02:14] White is more active.} (30. Re3 $14) 30... Qxd3 $11 {[%emt 0:01:03]} 31. Rxd3 {[%emt 0:00:06][%cal Og5g6]} Nd7 {[%emt 0:01:18]} 32. Ndb3 {[%emt 0:00:28]} Nf8 {[%emt 0:04:19]} 33. Kg2 {[%emt 0:04:08]} Ng6 {[%emt 0:02:33]} 34. Kg3 {[%emt 0:01:38] Dodges Nf4} Re8 {[%emt 0:07:51]} 35. Rde3 {[%emt 0:07:54]} Rxe3+ {[%emt 0:01:05]} 36. Rxe3 {[%emt 0:00:03]} Nge7 {[%emt 0:00:06]} 37. Rf3 {[%emt 0:01:37] Wards off Nf5+} Nc8 {[%emt 0:03:59]} 38. Rf5 {[%emt 0:02:14]} Nb6 {[%emt 0:01:23]} 39. Nc1 {[%emt 0:02:01]} Rd8 {[%emt 0:07:03]} 40. N1d3 {[%emt 0:00:00]} Nc4 {[%emt 0:00:00]} 41. Rf1 {[%emt 0:08:57]} Ne7 {[%emt 0:01:48]} 42. Nf4 {[%emt 0:02:46]} g6 {[%emt 0:04:19]} 43. Rb1 {[%emt 0:29:28]} Nd6 {[%emt 0:04:19] Prevents Rb7.} (43... Ne3 $11) 44. Re1 {[%emt 0:00:00]} Ndf5+ {[%emt 0:02:29]} 45. Kh3 {[%emt 0:00:00]} Rb8 {[%emt 0:06:12]} 46. Nd7 {[%emt 0:00:00]} Rb2 {[%emt 0:02:53]} 47. Nf6+ {[%emt 0:00:00]} Kg7 {[%emt 0:00:13]} 48. N4xd5 {[%emt 0:00:00]} Nxd5 {[%emt 0:00:24]} 49. Nxd5 {[%emt 0:00:00][%mdl 4096] Endgame. KRN-KRN} Rd2 {[%emt 0:00:52]} 50. Re8 {[%emt 0:00:00] [#] Nf6 is the strong threat.} Rd3+ {[%emt 0:00:12]} 51. Kg2 $1 {[%emt 0:00:00]} Nxh4+ {[%emt 0:08:45]} 52. Kf2 {[%emt 0:04:30] Nf6 would now be deadly.} Rf3+ {[%emt 0:00:30]} 53. Ke2 {[%emt 0:00:30] Strongly threatening Nf6.} Rg3 $1 {[%emt 0:00:30]} 54. Ne3 $1 {[%emt 0:00:30] [#] Black must now prevent d5.} Nf5 {[%emt 0:00:00]} ({Much weaker is} 54... Rxg5 $6 55. c4 Nf5 56. Nxf5+ gxf5 (56... Rxf5 $2 {too greedy.} 57. c5 $18) 57. c5 Rg2+ 58. Kd3 $16) 55. d5 {[%emt 0:00:00] aiming for Nxf5+.} Nd6 {[%emt 0:00:00]} 56. Re5 {[%emt 0:00:00]} Rg1 {[%emt 0:00:00]} (56... h4 $5 57. Kf2 $8 Rxg5 58. Rxg5 Ne4+ 59. Kg2 Nxg5 $11) 57. c4 {[%emt 0:00:00] Hoping for c5.} Rc1 {[%emt 0:01:23][%cal Oc1c3]} 58. Re7 $1 {[%emt 0:00:00] And now Kd2 would win.} Nxc4 {[%emt 0:00:22][%mdl 8192] This move loses the game for Black.} (58... h4 $11 59. Kf3 (59. Kd2 $2 Ra1 $19) 59... Kf8 (59... Nxc4 60. Nxc4 Rxc4 61. d6 $15)) 59. Rc7 $18 {[%emt 0:00:00] White is clearly winning.} Nxe3 {[%emt 0:00:43]} 60. Rxc1 {[%emt 0:00:00]} Nxd5 {[%emt 0:00:04]} 61. Rc5 {[%emt 0:00:00][%csl LRa5,LRd5]} Nf4+ {[%emt 0:00:29]} 62. Kf3 {[%emt 0:00:00]} Ne6 {[%emt 0:00:16]} 63. Rxa5 {[%emt 0:00:00] Weighted Error Value: White=0.05 (flawless) /Black=0.06 (flawless) .  Loses game:     	---       	Black=1      Mistake:       	White=1     	Black=2      Inaccurate:     	White=2     	---        OK:         	White=16    	Black=24     Best:        	White=4     	Black=4      Strong:       	White=4     	Black=1} 1-0

[Event "Romanian Championship 2024"]
[Site "Eforie Nord"]
[Date "2024.03.01"]
[Round "8.13"]
[White "Antal, Hunor-Zoltan"]
[Black "Botea, David-Alexandru"]
[Result "1-0"]
[ECO "A13"]
[WhiteElo "2272"]
[BlackElo "2081"]
[Annotator "TA"]
[PlyCount "95"]
[EventDate "2024.02.24"]
[EventType "swiss"]
[EventCountry "ROU"]
[SourceTitle "playchess.com"]
[Source "ChessBase"]
[SourceQuality "1"]
[TimeControl "40/5400+30:900+30"]

{[%evp 10,95,6,-2,8,8,2,-6,0,0,0,0,0,0,0,-2,0,0,0,0,10,0,10,-13,20,-31,-17,-57,-39,-45,-46,-74,0,0,0,10,52,55,62,54,54,51,63,64,53,66,54,56,55,61,60,53,51,26,34,31,14,0,129,128,140,159,138,157,252,209,275,250,247,243,238,52,43,0,168,172,239,203,231,228,220,220,434,426,483,472,464,441]} 1. Nf3 {[%emt 0:00:30]} d5 {[%emt 0:00:32]} 2. e3 {[%emt 0:00:53]} Nf6 {[%emt 0:00:49]} 3. c4 {[%emt 0:00:05]} e6 {[%emt 0:01:52]} 4. b3 {[%emt 0:00:06]} Be7 {[%emt 0:01:03]} 5. Bb2 {[%emt 0:00:07]} O-O {[%emt 0:00:57]} 6. Nc3 {[%emt 0:00:05]} dxc4 {[%emt 0:01:01]} 7. bxc4 {[%emt 0:00:19]} c5 {[%emt 0:00:38]} 8. Be2 {[%emt 0:01:58]} b6 {[%emt 0:01:45] The position is equal.} 9. d3 {[%emt 0:01:36]} Nc6 {[%emt 0:02:32]} 10. O-O {[%emt 0:00:09]} Bb7 {[%emt 0:12:22]} 11. Qc2 {[%emt 0:00:09]} Rc8 {[%emt 0:11:06]} 12. Rad1 {[%emt 0:02:53]} Qc7 {[%emt 0:01:25]} 13. Nd2 {[%emt 0:07:24]} Ne8 {[%emt 0:10:03]} 14. f4 {[%emt 0:02:01]} f5 {[%emt 0:08:28]} 15. Nf3 {[%emt 0:01:51]} Nd6 {[%emt 0:02:12]} 16. h3 {[%emt 0:18:07]} a6 {[%emt 0:05:02]} 17. a4 {[%emt 0:05:44]} (17. Rb1 $11) 17... Nf7 $15 {[%emt 0:04:58]} 18. Ba1 {[%emt 0:09:53]} Nb4 {[%emt 0:03:03]} 19. Qb2 {[%emt 0:00:59][%cal Oc3d5] [#] And now Nd5! would win.} Bf6 {[%emt 0:02:41]} 20. Qb3 {[%emt 0:14:16]} e5 {[%emt 0:09:27]} (20... g5 $17) 21. Nd5 $11 {[%emt 0:02:38]} Bxd5 {[%emt 0:04:32]} 22. cxd5 {[%emt 0:00:06]} Qd6 {[%emt 0:00:51]} 23. fxe5 {[%emt 0:03:31]} Nxe5 {[%emt 0:00:15]} 24. Bxe5 {[%emt 0:00:23]} Bxe5 {[%emt 0:00:08]} 25. d4 {[%emt 0:00:05]} Bf6 {[%emt 0:02:08]} 26. dxc5 {[%emt 0:02:08]} bxc5 {[%emt 0:05:53]} 27. Nd2 $1 {[%emt 0:00:46]} Qd7 {[%emt 0:05:03][%cal Oc8b8]} 28. Nc4 {[%emt 0:00:19]} Rcd8 {[%emt 0:00:18][%cal Og7g6]} 29. a5 $36 {[%emt 0:11:12][%mdl 2048] White has the initiative.} g6 {[%emt 0:01:06]} (29... Nxd5 $2 30. Nb6 Qe8 31. Nxd5 $18) 30. d6 {[%emt 0:01:07]} Kg7 {[%emt 0:01:02]} 31. Kh1 {[%emt 0:04:36]} Qe6 {[%emt 0:01:34]} 32. Bf3 {[%emt 0:03:47][%cal Oe3e4]} Be5 {[%emt 0:00:46][%cal Re5d6]} 33. Bd5 {[%emt 0:01:39]} Nxd5 {[%emt 0:00:20]} (33... Qf6 $1 $11 {remains equal.}) 34. Qb7+ $16 {[%emt 0:00:33]} Rf7 {[%emt 0:01:00]} 35. Qxd5 {[%emt 0:00:08] White is more active.} Qxd5 {[%emt 0:00:34]} 36. Rxd5 {[%emt 0:00:00]} Bf6 {[%emt 0:00:29]} (36... Bg3 $16) 37. Rb1 {[%emt 0:00:06]} Rc8 {[%emt 0:00:31]} 38. d7 {[%emt 0:01:55]} Rd8 {[%emt 0:00:16]} 39. Rb7 {[%emt 0:00:20]} (39. Rxc5 Rfxd7 40. g4 fxg4 $11) 39... Bc3 {[%emt 0:00:44]} 40. Nd6 $2 {[%emt 0:00:00]} (40. Rxc5 Rdxd7 41. Rxd7 Rxd7 $11) (40. g3 $18) 40... Re7 $14 {[%emt 0:00:00]} 41. Nc4 {[%emt 0:11:03][%cal Og2g3] [#] Hoping for g3!} Kf8 $2 {[%emt 0:10:14]} (41... Rf7 $1 $11 42. g3 (42. Rxc5 Rfxd7 43. Rxd7+ Rxd7 $11) 42... Re7) 42. Rc7 $18 {[%emt 0:00:49][%cal Oc7c8] Threatens to win with Rc8!} (42. Rxc5 Rdxd7 43. Rxd7 Rxd7 $11) 42... Kg7 {[%emt 0:02:54]} (42... Re6 $142 43. Rcxc5 (43. Rdxc5 Bb4 $18) 43... Ke7) 43. Kg1 {[%emt 0:01:03]} ({Worse is} 43. Rcxc5 Rdxd7 44. Rxd7 Rxd7 $11) 43... Kf6 {[%emt 0:02:48]} 44. Kf2 {[%emt 0:00:35] Repels Be1+} ({Inferior is} 44. Rcxc5 Rdxd7 45. Rxd7 (45. Nb6 Rc7 $14) 45... Rxd7 $11) 44... Bb4 {[%emt 0:00:25]} 45. Kf3 {[%emt 0:01:42]} h6 $2 {[%emt 0:01:38]} (45... Re6 {was necessary.} 46. g4 fxg4+ 47. hxg4 Ke7) 46. Rc6+ {[%emt 0:00:29] White is clearly winning.} Re6 {[%emt 0:00:28]} 47. Rxe6+ {[%emt 0:01:59]} Kxe6 {[%emt 0:00:02]} 48. Rd6+ {[%emt 0:00:08] Weighted Error Value: White=0.18 (very precise) /Black=0.33.  Loses game:     	---       	Black=1      Missed win:     	White=1     	---        Mistake:       	White=1     	Black=5      Inaccurate:     	White=3     	Black=3      OK:         	White=15    	Black=14     Best:        	White=5     	Black=2      Strong:       	White=1     	---} 1-0

[Event "Romanian Championship 2024"]
[Site "Eforie Nord"]
[Date "2024.03.01"]
[Round "8.14"]
[White "Tudor, Henry Edward"]
[Black "Lucaci, Alin-Marian"]
[Result "1-0"]
[ECO "A40"]
[WhiteElo "2239"]
[BlackElo "1749"]
[Annotator "TA"]
[PlyCount "57"]
[EventDate "2024.02.24"]
[EventType "swiss"]
[EventCountry "ROU"]
[SourceTitle "playchess.com"]
[Source "ChessBase"]
[SourceQuality "1"]
[TimeControl "40/5400+30:900+30"]

{[%evp 9,57,37,28,41,30,30,30,38,35,23,18,17,0,12,53,8,52,1,70,79,76,63,320,300,315,284,593,596,613,637,846,589,1082,1100,968,961,29979,29974,29985,3540,29986,705,993,992,982,941,947,0,938,548]} 1. d4 {[%emt 0:00:01]} e6 {[%emt 0:00:06]} 2. c4 {[%emt 0:00:05]} b6 {[%emt 0:00:03]} 3. e4 {[%emt 0:00:04]} Bb7 {[%emt 0:00:03]} 4. Bd3 {[%emt 0:00:05]} Nc6 {[%emt 0:00:04]} 5. Ne2 {[%emt 0:00:30]} g6 {[%emt 0:00:13]} 6. Nbc3 {[%emt 0:04:49]} Bg7 {[%emt 0:00:11]} 7. Be3 {[%emt 0:00:17]} Nge7 {[%emt 0:00:15]} 8. h4 {[%emt 0:11:15] White has an edge.} d5 {[%emt 0:50:57]} 9. cxd5 {[%emt 0:00:55]} exd5 {[%emt 0:00:05]} 10. e5 {[%emt 0:00:06]} Qd7 {[%emt 0:07:02]} 11. h5 {[%emt 0:04:50]} Rg8 {[%emt 0:07:45]} (11... O-O-O $5) 12. Rc1 {[%emt 0:26:38]} O-O-O {[%emt 0:03:26][%cal Og7e5]} 13. Bg5 {[%emt 0:02:42]} ({White should try} 13. Bf4 $14) 13... Rdf8 {[%emt 0:08:41]} (13... Rgf8 $11) 14. Bxe7 {[%emt 0:05:28]} Nxe7 {[%emt 0:00:07]} 15. Nb5 $36 {[%emt 0:00:11][%mdl 2048] White is pushing. White is more active.} Nc6 $2 {[%emt 0:02:15][%mdl 8192]} (15... c6 $1 $14) 16. Qa4 $18 {[%emt 0:01:01]} a6 {[%emt 0:06:40]} 17. Rxc6 {[%emt 0:01:56]} axb5 {[%emt 0:06:14]} (17... Bxc6 18. Na7+ (18. Qxa6+ Kd8 $18) 18... Kb7 19. Nxc6 (19. Bxa6+ $2 {perishes.} Kxa7 20. Qa3 Kb8 $19) (19. Qxa6+ Kb8 $16) 19... Ra8 20. Na5+ Kc8) 18. Bxb5 {[%emt 0:00:26] Rxb6 is the strong threat.} Qf5 {[%emt 0:01:14] [#]} 19. h6 $1 {[%emt 0:05:42]} Bh8 {[%emt 0:00:08] Black is weak on the dark squares} (19... Bxe5 20. dxe5) 20. Rc1 {[%emt 0:01:49]} f6 {[%emt 0:01:40][%cal Bf7f6,Bf6e5,Be5d4][%mdl 32]} 21. Bc6 {[%emt 0:00:39]} fxe5 {[%emt 0:01:37]} 22. Bxb7+ {[%emt 0:00:24]} Kxb7 {[%emt 0:00:14][%cal Bc8b7,Bb7b8,Bb8a8][%mdl 32]} 23. Qc6+ {[%emt 0:00:07]} Kb8 {[%emt 0:00:33]} 24. Qxc7+ {[%emt 0:00:07]} Ka8 {[%emt 0:00:04]} 25. O-O {[%emt 0:00:52]} (25. Rh3 $142 Qxh3 26. gxh3 Rc8 27. Qxc8+ (27. Qxb6 Rxc1+ 28. Nxc1 Rc8 $18) 27... Rxc8 28. Rxc8+ Kb7 29. Rxh8 g5 30. Rxh7+ (30. dxe5 Kc6 31. Rxh7 g4 32. hxg4 b5 33. e6 Kd6 34. e7 d4) 30... Kc6 31. Ra7 (31. dxe5 g4 32. hxg4 b5 33. e6 Kd6 34. e7 d4 35. e8=Q d3 36. Rd7+ Kc5 37. Qe5+ Kb4 38. Qd4+ Ka5 39. Ra7#)) 25... exd4 {[%emt 0:01:29]} 26. Qxb6 {[%emt 0:00:19][%cal Oc1c7] [#] Rc7! would kill now.} Rc8 {[%emt 0:01:09]} 27. Qa6+ {[%emt 0:00:01]} Kb8 {[%emt 0:00:08]} 28. Qb6+ {[%emt 0:00:03]} Ka8 {[%emt 0:00:05]} 29. Nxd4 {[%emt 0:00:29] Weighted Error Value: White=0.69/Black=0.86.  Loses game:     	---       	Black=1      Mistake:       	White=1     	Black=2      Inaccurate:     	White=1     	Black=3      OK:         	White=7     	Black=5} 1-0